bitfinex-derivatives/quotes_BTCF0:USTF0_20210703
["timestamp","ask_amount","ask_price","bid_price","bid_amount"]
[1625353402761,0.29957544,34477.0,34476.0,2.11268794]
[1625353402860,0.29957544,34477.0,34476.0,2.1170978]
[1625353403063,0.29957544,34477.0,34476.0,2.78632781]
[1625353403616,0.24057544,34477.0,34476.0,2.78632781]
[1625353403715,0.29957544,34477.0,34476.0,2.78632781]
[1625353403917,0.24057544,34477.0,34476.0,2.78632781]
[1625353404069,0.24057544,34477.0,34476.0,3.79067246]
[1625353404617,0.29957544,34477.0,34476.0,3.79067246]
[1625353404717,0.24057544,34477.0,34476.0,3.84967246]
[1625353404819,0.29957544,34477.0,34476.0,3.84967246]
[1625353406372,0.29957544,34477.0,34476.0,3.79067246]
[1625353406522,0.38529326,34477.0,34476.0,4.96406151]
[1625353408075,0.55657346,34477.0,34476.0,4.96406151]
[1625353409278,0.49757346,34477.0,34476.0,4.96406151]
[1625353409729,0.24057544,34477.0,34476.0,4.96406151]
[1625353409978,0.32631363,34477.0,34476.0,4.96406151]
[1625353410632,0.24057544,34477.0,34476.0,6.30778782]
[1625353412892,0.25711792,34478.0,34476.0,6.30778782]
[1625353413343,0.25711792,34478.0,34477.0,4.70640594]
[1625353413442,0.25711792,34478.0,34477.0,5.00208594]
[1625353413797,0.599656,34482.0,34477.0,6.51098533]
[1625353414097,0.599656,34482.0,34481.0,0.24057544]
[1625353414296,0.51373664,34482.0,34481.0,3.59443964]
[1625353415347,0.85626293,34482.0,34481.0,3.59443964]
[1625353416198,0.91526293,34482.0,34481.0,3.59443964]
[1625353416400,0.57273664,34482.0,34481.0,3.59443964]
[1625353417053,0.91528168,34482.0,34481.0,3.59443964]
[1625353418556,0.85628168,34482.0,34481.0,3.59443964]
[1625353419512,0.51387499,34482.0,34481.0,3.59443964]
[1625353420764,0.59962496,34482.0,34481.0,3.59443964]
[1625353421516,0.65862496,34482.0,34481.0,3.59443964]
[1625353423071,0.59962496,34482.0,34481.0,3.59443964]
[1625353423420,0.25707992,34482.0,34481.0,3.59884804]
[1625353423972,0.08574997,34482.0,34481.0,3.59884804]
[1625353426476,0.14474997,34482.0,34481.0,3.59884804]
[1625353426826,0.14474997,34482.0,34481.0,4.15784804]
[1625353427527,0.059,34482.0,34481.0,5.49745594]
[1625353427626,0.59922388,34484.0,34481.0,5.49745594]
[1625353427776,0.65822388,34484.0,34481.0,5.49745594]
[1625353427976,0.65822388,34484.0,34482.0,0.00440838]
[1625353428076,0.65822388,34484.0,34482.0,0.50440838]
[1625353428228,0.65822388,34484.0,34483.0,0.24057544]
[1625353428478,0.65822388,34484.0,34483.0,0.24498382]
[1625353428578,0.31593242,34484.0,34483.0,3.59365511]
[1625353429078,0.14470116,34484.0,34483.0,2.42162016]
[1625353429228,0.059,34484.0,34483.0,2.42162016]
[1625353429629,0.059,34484.0,34483.0,3.59377388]
[1625353430231,0.14468596,34484.0,34483.0,3.59377388]
[1625353431282,0.14468596,34484.0,34483.0,2.42162016]
[1625353432137,0.14468596,34484.0,34483.0,3.59681611]
[1625353432891,0.20368596,34484.0,34483.0,3.59681611]
[1625353433195,0.37484103,34484.0,34483.0,2.42162016]
[1625353433344,0.64485455,34484.0,34483.0,2.42162016]
[1625353433744,0.38801352,34484.0,34483.0,1.7518859]
[1625353433843,3.80877518,34484.0,34483.0,0.24498382]
[1625353434244,4.04935062,34484.0,34483.0,0.24498382]
[1625353434693,4.04935062,34484.0,34483.0,0.24057544]
[1625353434894,5.41764586,34484.0,34483.0,0.24057544]
[1625353438250,5.41764586,34484.0,34478.0,0.25267328]
[1625353438701,0.0145853,34483.0,34478.0,0.08422443]
[1625353438803,0.1325853,34483.0,34478.0,0.08422443]
[1625353439203,3.42118468,34479.0,34477.0,0.58965763]
[1625353439303,3.48018468,34479.0,34477.0,0.58965763]
[1625353439503,0.0145859,34478.0,34477.0,0.58965763]
[1625353439705,3.49496386,34478.0,34476.0,1.41985088]
[1625353439804,3.55396386,34478.0,34476.0,1.41985088]
[1625353440004,0.01458652,34477.0,34476.0,1.41985088]
[1625353440105,0.41703652,34477.0,34476.0,1.41985088]
[1625353440254,0.8981874,34477.0,34476.0,1.17927544]
[1625353440355,4.31971194,34477.0,34476.0,1.17927544]
[1625353441059,5.68822485,34477.0,34476.0,1.17927544]
[1625353446227,5.67363833,34477.0,34476.0,1.17927544]
[1625353453341,5.61463833,34477.0,34476.0,1.17927544]
[1625353453442,5.67363833,34477.0,34476.0,1.17927544]
[1625353453543,3.48052454,34477.0,34476.0,1.17927544]
[1625353453944,2.28305937,34477.0,34476.0,2.35614536]
[1625353454341,2.28305937,34477.0,34476.0,2.5967208]
[1625353454442,1.25663622,34477.0,34476.0,2.5967208]
[1625353454541,1.19763622,34477.0,34476.0,2.5967208]
[1625353454641,1.25663622,34477.0,34476.0,2.5967208]
[1625353454797,1.19763622,34477.0,34476.0,2.5967208]
[1625353454895,0.57259713,34477.0,34476.0,3.60468157]
[1625353455192,0.059,34477.0,34476.0,4.78476224]
[1625353455292,0.25702107,34478.0,34476.0,4.78476224]
[1625353455391,0.31602107,34478.0,34476.0,4.78476224]
[1625353455643,0.31602107,34478.0,34477.0,3.35872641]
[1625353456192,0.059,34478.0,34477.0,3.35872641]
[1625353456292,0.059,34478.0,34477.0,3.36313652]
[1625353456390,0.059,34478.0,34477.0,3.60371196]
[1625353456893,0.059,34478.0,34477.0,5.44687254]
[1625353456992,0.25703862,34479.0,34477.0,5.44687254]
[1625353457093,0.31603862,34479.0,34478.0,0.0869]
[1625353457194,0.25703862,34479.0,34478.0,0.5869]
[1625353457295,0.25703862,34479.0,34478.0,0.6503099]
[1625353457395,0.59959441,34481.0,34478.0,5.35130613]
[1625353457493,0.65859441,34481.0,34478.0,5.35130613]
[1625353457594,0.59959441,34481.0,34478.0,5.35130613]
[1625353457846,0.59959441,34481.0,34479.0,0.00440954]
[1625353457946,0.25706808,34483.0,34480.0,4.69637037]
[1625353458045,0.25706808,34483.0,34480.0,5.43493037]
[1625353458145,0.25706808,34483.0,34480.0,5.49393037]
[1625353458347,0.25706808,34483.0,34482.0,0.48115088]
[1625353458448,0.25706808,34483.0,34482.0,3.89463717]
[1625353458449,0.08574641,34483.0,34482.0,3.89463717]
[1625353458647,0.08574641,34483.0,34482.0,3.89904657]
[1625353459001,0.25705229,34484.0,34482.0,5.24068232]
[1625353459451,0.08573806,34485.0,34483.0,4.75693828]
[1625353459804,0.31604297,34485.0,34484.0,3.35316837]
[1625353459903,0.31604297,34485.0,34484.0,3.35757765]
[1625353460104,0.14473806,34485.0,34484.0,3.35757765]
[1625353460203,0.08573806,34485.0,34484.0,3.35757765]
[1625353460353,0.08573806,34485.0,34484.0,3.59374381]
[1625353461156,0.08573806,34485.0,34484.0,3.59815259]
[1625353461707,0.08572206,34486.0,34484.0,4.93895554]
[1625353461956,0.08572206,34486.0,34485.0,0.00440864]
[1625353462207,0.08572206,34486.0,34484.0,4.93454676]
[1625353462310,0.25697847,34487.0,34485.0,3.35075049]
[1625353462407,0.25697847,34487.0,34485.0,3.59132593]
[1625353462507,0.31597847,34487.0,34485.0,3.59132593]
[1625353462757,0.65828734,34487.0,34486.0,2.17844185]
[1625353463209,0.65828734,34487.0,34486.0,3.35128994]
[1625353463408,0.59928734,34487.0,34486.0,3.35128994]
[1625353463508,0.65828734,34487.0,34486.0,3.35128994]
[1625353463709,0.59928734,34487.0,34486.0,3.35128994]
[1625353463909,0.51337777,34488.0,34486.0,3.35128994]
[1625353463910,0.08569766,34488.0,34486.0,3.35128994]
[1625353464464,0.08569766,34488.0,34487.0,3.34880262]
[1625353464610,0.08569766,34488.0,34487.0,3.53959262]
[1625353465611,0.08569766,34488.0,34487.0,2.3675117]
[1625353466115,0.59916302,34489.0,34487.0,3.53927061]
[1625353466364,0.59916302,34489.0,34488.0,0.24057544]
[1625353466616,0.59916302,34489.0,34488.0,2.41704256]
[1625353466617,0.51350172,34489.0,34488.0,2.41704256]
[1625353467668,0.59915655,34489.0,34488.0,2.41704256]
[1625353468221,0.51350172,34489.0,34488.0,1.41251927]
[1625353470525,0.34227746,34489.0,34488.0,1.41251927]
[1625353471076,1.19673765,34489.0,34488.0,1.07800307]
[1625353472127,1.25573765,34489.0,34488.0,1.07800307]
[1625353472228,1.25573765,34489.0,34488.0,0.74331925]
[1625353472733,1.25573765,34489.0,34488.0,0.82712258]
[1625353473332,2.28131751,34489.0,34488.0,0.49195659]
[1625353473782,2.34031751,34489.0,34488.0,0.49195659]
[1625353474345,2.34031751,34489.0,34488.0,0.32437877]
[1625353474845,2.59200751,34489.0,34488.0,0.24057544]
[1625353475248,5.15590127,34489.0,34488.0,0.24057544]
[1625353475544,5.09690127,34489.0,34488.0,0.18157544]
[1625353475798,6.63541372,34489.0,34488.0,0.18157544]
[1625353476144,6.63541372,34489.0,34485.0,0.24057544]
[1625353476246,6.69441372,34489.0,34485.0,0.24057544]
[1625353476445,0.48115088,34486.0,34485.0,0.24057544]
[1625353476594,0.59915088,34486.0,34485.0,0.24057544]
[1625353476695,6.92513095,34486.0,34485.0,0.24057544]
[1625353480802,5.38645758,34486.0,34485.0,0.24057544]
[1625353481354,4.01872893,34486.0,34485.0,0.24057544]
[1625353481906,5.38610269,34486.0,34485.0,0.24057544]
[1625353483006,5.38610269,34486.0,34485.0,0.44902544]
[1625353483259,5.32710269,34486.0,34485.0,0.44902544]
[1625353483607,5.38610269,34486.0,34485.0,0.44902544]
[1625353483858,4.01872893,34486.0,34485.0,0.44902544]
[1625353484460,5.38624402,34486.0,34485.0,0.44902544]
[1625353485061,5.38624402,34486.0,34485.0,0.24057544]
[1625353485765,5.4008217,34486.0,34485.0,0.24057544]
[1625353490125,0.61372856,34486.0,34485.0,0.24057544]
[1625353490725,5.40100826,34486.0,34485.0,0.24057544]
[1625353491879,5.38643058,34486.0,34485.0,0.24057544]
[1625353492129,5.40100858,34486.0,34485.0,0.24057544]
[1625353497142,5.38643058,34486.0,34485.0,0.24057544]
[1625353497242,5.32743058,34486.0,34485.0,0.24057544]
[1625353497843,3.95970964,34486.0,34485.0,0.24057544]
[1625353498192,4.01870964,34486.0,34485.0,0.24057544]
[1625353498696,4.03328692,34486.0,34485.0,0.24057544]
[1625353500499,5.40119057,34486.0,34485.0,0.24057544]
[1625353502105,5.40119057,34486.0,34481.0,0.58773291]
[1625353502505,0.01458209,34485.0,34481.0,0.58773291]
[1625353502608,3.66115651,34482.0,34479.0,0.25218421]
[1625353502706,3.92096651,34482.0,34479.0,0.25218421]
[1625353502807,3.97996651,34482.0,34479.0,0.25218421]
[1625353503056,0.01458254,34481.0,34479.0,0.25218421]
[1625353503158,4.78909703,34480.0,34478.0,0.24057544]
[1625353503256,4.90709703,34480.0,34478.0,0.24057544]
[1625353503557,0.01458294,34479.0,34478.0,0.24057544]
[1625353503657,0.07358294,34479.0,34478.0,0.24057544]
[1625353503761,4.92177974,34479.0,34478.0,0.24057544]
[1625353504059,0.13258294,34479.0,34478.0,0.24057544]
[1625353504510,0.13258294,34479.0,34476.0,0.9387]
[1625353504611,5.16278758,34479.0,34476.0,0.9387]
[1625353504960,0.01458354,34478.0,34476.0,0.9387]
[1625353505060,0.13258354,34478.0,34476.0,0.9387]
[1625353505263,4.78973676,34477.0,34476.0,0.9387]
[1625353505411,4.92232021,34477.0,34476.0,0.9387]
[1625353506615,5.16289565,34477.0,34476.0,0.9387]
[1625353506915,6.70215667,34477.0,34476.0,0.9387]
[1625353507916,6.70215667,34477.0,34475.0,0.24057544]
[1625353508319,0.0145841,34476.0,34475.0,0.24057544]
[1625353508421,0.1325841,34476.0,34475.0,0.24057544]
[1625353508670,0.1325841,34476.0,34470.0,0.25393109]
[1625353509020,4.92087766,34476.0,34469.0,0.25412236]
[1625353509121,0.0145841,34475.0,34469.0,0.25412236]
[1625353509321,0.4086841,34475.0,34469.0,0.25412236]
[1625353509571,1.02602635,34471.0,34470.0,0.25408554]
[1625353509675,1.14402635,34471.0,34470.0,0.25408554]
[1625353510172,2.34119812,34471.0,34470.0,0.25408554]
[1625353510422,2.28219812,34471.0,34470.0,0.25408554]
[1625353510623,2.58177356,34471.0,34470.0,0.50806072]
[1625353510972,2.58177356,34471.0,34469.0,0.59287324]
[1625353511525,2.222974,34470.0,34469.0,0.25408853]
[1625353511623,2.281974,34470.0,34469.0,0.25408853]
[1625353511926,2.281974,34470.0,34469.0,0.08469618]
[1625353512276,2.281974,34470.0,34468.0,0.59293679]
[1625353512727,1.19682738,34469.0,34468.0,0.59293679]
[1625353512827,1.25582738,34469.0,34468.0,0.59293679]
[1625353514231,1.25582738,34469.0,34468.0,0.25410087]
[1625353515786,1.25582738,34469.0,34467.0,1.073843]
[1625353516289,0.85441447,34468.0,34467.0,1.073843]
[1625353516386,1.19532447,34468.0,34467.0,1.073843]
[1625353516790,0.68270995,34468.0,34467.0,1.073843]
[1625353517344,0.85369481,34468.0,34467.0,1.073843]
[1625353518446,0.85369481,34468.0,34467.0,0.73511158]
[1625353518896,0.93925517,34468.0,34467.0,1.07329061]
[1625353519046,0.65734517,34468.0,34467.0,1.07329061]
[1625353519398,0.31554522,34468.0,34467.0,0.98863704]
[1625353520952,0.52987522,34468.0,34467.0,0.98863704]
[1625353521506,0.52987522,34468.0,34467.0,1.07313982]
[1625353522559,0.52987522,34468.0,34467.0,0.98863704]
[1625353522910,0.87159807,34468.0,34467.0,0.98863704]
[1625353523060,0.87159807,34468.0,34467.0,1.07316285]
[1625353523459,0.78603771,34468.0,34467.0,0.73498382]
[1625353524010,0.78603771,34468.0,34467.0,0.56567669]
[1625353524562,1.12762994,34468.0,34467.0,0.73480271]
[1625353525617,0.78590709,34468.0,34467.0,0.56567669]
[1625353526215,1.46943954,34468.0,34467.0,0.56567669]
[1625353526617,1.46943954,34468.0,34467.0,0.48115088]
[1625353527466,0.78590709,34468.0,34467.0,0.73455011]
[1625353527971,0.78590709,34468.0,34467.0,0.81913308]
[1625353528320,0.80050236,34468.0,34467.0,0.82354137]
[1625353528519,1.1424495,34468.0,34467.0,1.33082953]
[1625353530023,0.80050236,34468.0,34467.0,0.99284733]
[1625353532479,1.48474328,34468.0,34467.0,1.66953555]
[1625353535534,1.48474328,34468.0,34467.0,2.68566344]
[1625353537342,1.48474328,34468.0,34467.0,1.66953555]
[1625353539548,2.51145274,34468.0,34467.0,1.66953555]
[1625353540048,2.51145274,34468.0,34467.0,0.99284733]
[1625353540600,2.51145274,34468.0,34467.0,1.33183617]
[1625353541405,3.70923575,34468.0,34467.0,1.0789226]
[1625353541804,3.70923575,34468.0,34467.0,0.99413107]
[1625353541955,3.76823575,34468.0,34467.0,0.51298019]
[1625353542461,3.76823575,34468.0,34467.0,0.00440829]
[1625353542808,4.00881119,34468.0,34467.0,0.00440829]
[1625353543008,5.37785127,34468.0,34467.0,0.00440829]
[1625353545463,5.37785127,34468.0,34466.0,0.00440895]
[1625353545712,5.37785127,34468.0,34467.0,0.00440893]
[1625353545963,5.37785127,34468.0,34466.0,0.00440893]
[1625353546214,0.01459515,34467.0,34466.0,0.00440893]
[1625353546315,0.13259515,34467.0,34466.0,0.00440893]
[1625353546865,4.92542685,34467.0,34466.0,0.00440893]
[1625353550678,3.55611971,34467.0,34466.0,0.2595249]
[1625353551278,3.55611971,34467.0,34466.0,0.59963917]
[1625353551730,3.55611971,34467.0,34466.0,0.85443824]
[1625353552280,3.55611971,34467.0,34466.0,1.19409412]
[1625353554085,3.83577971,34467.0,34466.0,1.19409412]
[1625353554237,5.20594921,34467.0,34466.0,0.68449281]
[1625353554336,5.20594921,34467.0,34466.0,0.25966219]
[1625353554887,5.92767553,34467.0,34466.0,0.08949335]
[1625353555337,5.92767553,34467.0,34466.0,0.00440893]
[1625353555590,5.92767553,34467.0,34465.0,0.59570548]
[1625353555937,4.8566094,34466.0,34465.0,0.51052839]
[1625353556039,4.93020108,34466.0,34465.0,0.51052839]
[1625353556338,4.93020108,34466.0,34465.0,0.51493865]
[1625353558250,4.93020108,34466.0,34465.0,1.1982716]
[1625353560599,4.93020108,34466.0,34465.0,2.22239965]
[1625353561102,4.93020108,34466.0,34465.0,1.1982716]
[1625353561400,4.93020108,34466.0,34465.0,1.19386134]
[1625353561751,6.47493889,34466.0,34465.0,0.08530721]
[1625353562403,6.47493889,34466.0,34462.0,0.59762865]
[1625353562756,6.35145314,34463.0,34462.0,0.08537552]
[1625353562853,6.46945314,34463.0,34462.0,0.08537552]
[1625353563053,6.71002858,34463.0,34462.0,0.08537552]
[1625353563255,6.72464118,34463.0,34462.0,0.08537552]
[1625353563906,6.72464118,34463.0,34460.0,0.25616634]
[1625353564407,0.01461336,34462.0,34460.0,0.25616634]
[1625353564507,6.35008908,34461.0,34460.0,0.08538878]
[1625353564606,6.46808908,34461.0,34460.0,0.08538878]
[1625353564908,6.48270263,34461.0,34459.0,0.08545544]
[1625353565058,0.70795088,34460.0,34459.0,0.08545544]
[1625353565162,0.82595088,34460.0,34459.0,0.08545544]
[1625353565259,0.84056552,34460.0,34459.0,0.08545544]
[1625353565361,7.18774459,34460.0,34457.0,0.08551479]
[1625353565708,0.01461531,34459.0,34457.0,0.08551479]
[1625353565809,0.13261531,34459.0,34457.0,0.08551479]
[1625353566011,0.13261531,34459.0,34454.0,0.68411835]
[1625353566012,6.34739817,34458.0,34454.0,0.25672113]
[1625353566109,6.46539817,34458.0,34454.0,0.25672113]
[1625353566313,0.01461545,34457.0,34454.0,0.25672113]
[1625353566412,0.13261545,34457.0,34454.0,0.25672113]
[1625353566612,6.34750543,34455.0,34453.0,0.08561249]
[1625353566862,6.46550543,34455.0,34453.0,0.08561249]
[1625353567010,0.48115088,34454.0,34453.0,0.08561249]
[1625353567111,0.61376647,34454.0,34453.0,0.08561249]
[1625353567261,6.9547865,34454.0,34451.0,0.59875081]
[1625353567612,0.01461572,34453.0,34451.0,0.59875081]
[1625353567713,0.13261572,34453.0,34451.0,0.59875081]
[1625353567862,4.79871672,34452.0,34451.0,0.25660749]
[1625353567960,4.85771672,34452.0,34451.0,0.25660749]
[1625353568212,1.2588077,34452.0,34451.0,3.42135615]
[1625353568513,1.3178077,34452.0,34451.0,3.42135615]
[1625353568614,2.3459738,34452.0,34451.0,3.42135615]
[1625353568912,2.3459738,34452.0,34451.0,3.41695194]
[1625353569068,3.54495297,34452.0,34451.0,1.19593318]
[1625353569165,3.54495297,34452.0,34451.0,1.20033749]
[1625353569263,3.48595297,34452.0,34451.0,1.20033749]
[1625353569414,3.54495297,34452.0,34451.0,1.20033749]
[1625353569815,2.3459738,34452.0,34451.0,2.22625299]
[1625353570214,2.3459738,34452.0,34451.0,2.22184868]
[1625353570565,2.3459738,34452.0,34451.0,1.19593318]
[1625353570917,2.2869738,34452.0,34451.0,1.19593318]
[1625353571015,2.2869738,34452.0,34451.0,1.20033732]
[1625353571117,2.2869738,34452.0,34451.0,1.44091276]
[1625353571519,0.57322778,34452.0,34451.0,2.46621823]
[1625353572068,0.31609602,34452.0,34451.0,3.66201797]
[1625353573819,0.65856265,34452.0,34451.0,3.66201797]
[1625353574072,0.59956265,34452.0,34451.0,3.66201797]
[1625353574273,0.59956265,34452.0,34451.0,3.72101797]
[1625353574672,0.24057544,34453.0,34451.0,6.6213122]
[1625353575023,0.24057544,34453.0,34452.0,0.0044029]
[1625353575129,0.24057544,34453.0,34452.0,6.61474936]
[1625353575226,0.59945313,34458.0,34452.0,7.17374936]
[1625353575574,0.59945313,34458.0,34453.0,0.00440274]
[1625353575675,0.49759904,34460.0,34457.0,4.77222572]
[1625353575874,0.49759904,34460.0,34457.0,5.03919572]
[1625353576078,0.49759904,34460.0,34458.0,0.00440267]
[1625353576276,0.24057544,34460.0,34459.0,3.40682526]
[1625353576677,0.24057544,34460.0,34459.0,3.41122789]
[1625353576927,0.24057544,34460.0,34459.0,3.40682526]
[1625353577028,0.29957544,34460.0,34459.0,3.40682526]
[1625353577130,0.29957544,34460.0,34459.0,3.6474007]
[1625353577230,0.35857544,34460.0,34459.0,3.6474007]
[1625353577480,1.55684907,34460.0,34459.0,2.45501186]
[1625353577882,2.52486546,34460.0,34459.0,1.43296428]
[1625353578583,1.49784907,34460.0,34459.0,2.45606656]
[1625353581489,2.52497862,34460.0,34459.0,2.45606656]
[1625353582193,1.49784907,34460.0,34459.0,2.45606656]
[1625353583041,1.49784907,34460.0,34459.0,2.4604671]
[1625353584497,1.43884907,34460.0,34459.0,2.7167471]
[1625353585196,0.75441651,34460.0,34459.0,3.91039703]
[1625353586198,0.49767022,34460.0,34459.0,3.91039703]
[1625353586702,0.84018639,34460.0,34459.0,3.91039703]
[1625353587255,0.25709478,34460.0,34459.0,3.91039703]
[1625353587352,0.85621422,34461.0,34459.0,4.02839703]
[1625353587501,0.85621422,34461.0,34459.0,4.52839703]
[1625353587856,6.32e-06,34462.0,34460.0,0.00439983]
[1625353587954,0.34251777,34464.0,34460.0,5.38078178]
[1625353588153,1.777e-05,34464.0,34460.0,5.38078178]
[1625353588253,1.19855544,34465.0,34460.0,5.38078178]
[1625353588353,1.19855544,34465.0,34461.0,0.00439979]
[1625353588454,1.19855544,34465.0,34462.0,0.5]
[1625353588605,0.51368282,34467.0,34463.0,4.06796544]
[1625353588705,0.51368282,34467.0,34463.0,4.62696544]
[1625353588855,0.51368282,34467.0,34463.0,4.68596544]
[1625353589104,0.51368282,34467.0,34464.0,0.06339958]
[1625353589206,0.51368282,34467.0,34466.0,0.72172632]
[1625353589306,1.36953558,34472.0,34466.0,3.78721243]
[1625353589307,0.5136366,34468.0,34466.0,3.78721243]
[1625353589555,0.5136366,34468.0,34466.0,3.79161197]
[1625353589756,0.5136366,34468.0,34466.0,3.78721243]
[1625353589856,0.5136366,34468.0,34467.0,2.71078384]
[1625353589957,0.5136366,34468.0,34467.0,2.76978384]
[1625353590559,0.5136366,34468.0,34467.0,1.58381591]
[1625353592361,0.5136366,34468.0,34467.0,2.77048284]
[1625353592510,0.5136366,34468.0,34467.0,3.27048284]
[1625353592961,3.66e-05,34468.0,34467.0,3.27048284]
[1625353593467,3.66e-05,34468.0,34467.0,3.27488204]
[1625353593616,1.02684556,34473.0,34467.0,4.63036599]
[1625353593714,1.08584556,34473.0,34467.0,4.63036599]
[1625353593814,1.02684556,34473.0,34467.0,4.63036599]
[1625353594016,1.02684556,34473.0,34467.0,4.62596679]
[1625353594117,1.02684556,34473.0,34471.0,1.01655901]
[1625353594219,1.02684556,34473.0,34471.0,1.07555901]
[1625353594770,1.02683594,34474.0,34472.0,1.01632047]
[1625353595319,1.02683594,34474.0,34473.0,0.48115088]
[1625353596573,1.22847544,34480.0,34473.0,0.48115088]
[1625353596722,1.28747544,34480.0,34473.0,0.48115088]
[1625353596824,0.35857544,34480.0,34473.0,0.48115088]
[1625353597276,0.35857544,34480.0,34479.0,0.24057544]
[1625353597975,0.3731966,34480.0,34479.0,0.24057544]
[1625353598073,3.96550904,34480.0,34479.0,0.24057544]
[1625353598574,3.90650904,34480.0,34473.0,0.48115088]
[1625353598672,4.12478904,34480.0,34473.0,0.48115088]
[1625353598772,4.18378904,34480.0,34473.0,0.48115088]
[1625353598977,7.43418456,34480.0,34473.0,0.48115088]
[1625353599075,0.01462261,34479.0,34473.0,0.48115088]
[1625353599176,0.07362261,34479.0,34473.0,0.24057544]
[1625353599326,0.59915088,34474.0,34466.0,0.24057544]
[1625353599476,5.73183856,34474.0,34466.0,0.24057544]
[1625353599575,0.0146235,34473.0,34466.0,0.24057544]
[1625353599727,0.3595635,34473.0,34466.0,0.24057544]
[1625353600077,3.59292129,34467.0,34466.0,0.24057544]
[1625353600277,3.71092129,34467.0,34466.0,0.24057544]
[1625353600976,3.72554538,34467.0,34466.0,0.24057544]
[1625353601226,4.20669626,34467.0,34466.0,0.24057544]
[1625353604183,5.74688523,34467.0,34466.0,0.24057544]
[1625353609496,5.68788523,34467.0,34466.0,0.24057544]
[1625353609947,5.61426114,34467.0,34466.0,0.48910544]
[1625353610048,5.13311026,34467.0,34466.0,0.48910544]
[1625353610354,3.59292129,34467.0,34466.0,0.48910544]
[1625353610800,1.02656268,34469.0,34466.0,1.57004099]
[1625353611299,1.02656268,34469.0,34468.0,0.48115088]
[1625353611503,1.02652825,34470.0,34468.0,1.50266832]
[1625353611754,1.02652825,34470.0,34468.0,1.56166832]
[1625353611854,1.78028229,34477.0,34468.0,1.56166832]
[1625353611855,1.0263963,34471.0,34469.0,1.0209695]
[1625353612054,1.0263963,34471.0,34469.0,1.0799695]
[1625353612206,1.02633327,34472.0,34469.0,1.0799695]
[1625353612304,0.24057544,34477.0,34469.0,1.0799695]
[1625353612454,0.29957544,34477.0,34469.0,1.0799695]
[1625353612657,0.29957544,34477.0,34470.0,0.0867]
[1625353612658,1.02633294,34472.0,34470.0,0.0867]
[1625353612805,1.02633294,34472.0,34470.0,0.059]
[1625353613355,1.02633294,34472.0,34471.0,0.24057544]
[1625353617311,2.2823575,34472.0,34471.0,0.24057544]
[1625353617661,3.65039264,34472.0,34471.0,0.24057544]
[1625353618061,3.66500832,34472.0,34471.0,0.24057544]
[1625353618163,3.72400832,34472.0,34471.0,0.24057544]
[1625353618563,5.26308374,34472.0,34471.0,0.24057544]
[1625353618762,5.26308374,34472.0,34466.0,0.24057544]
[1625353618913,5.55580374,34472.0,34466.0,0.24057544]
[1625353619112,3.59155419,34467.0,34466.0,0.24057544]
[1625353619213,3.70955419,34467.0,34466.0,0.24057544]
[1625353619415,4.19070507,34467.0,34466.0,0.24057544]
[1625353619565,5.72997478,34467.0,34466.0,0.24057544]
[1625353620717,5.74459309,34467.0,34466.0,0.24057544]
[1625353623068,5.74459309,34467.0,34459.0,0.24057544]
[1625353623370,0.24057544,34460.0,34459.0,0.24057544]
[1625353623471,0.49778544,34460.0,34459.0,0.24057544]
[1625353623670,2.72129226,34460.0,34459.0,0.24057544]
[1625353624122,4.0895998,34460.0,34459.0,0.24057544]
[1625353624723,4.0895998,34460.0,34458.0,0.9616]
[1625353625274,0.01462059,34459.0,34458.0,0.9616]
[1625353625374,0.49577147,34459.0,34458.0,0.9616]
[1625353625477,0.49577147,34459.0,34452.0,1.26470496]
[1625353625478,0.55477147,34459.0,34452.0,1.26470496]
[1625353625677,0.55477147,34459.0,34452.0,0.24057544]
[1625353625678,4.14680536,34459.0,34452.0,0.24057544]
[1625353625776,4.20580536,34459.0,34452.0,0.24057544]
[1625353625876,0.01462129,34458.0,34452.0,0.24057544]
[1625353625976,0.13262129,34458.0,34452.0,0.24057544]
[1625353626377,2.22377858,34453.0,34452.0,0.24057544]
[1625353626477,2.55757858,34453.0,34452.0,0.24057544]
[1625353626577,2.61657858,34453.0,34452.0,0.24057544]
[1625353627430,3.09772946,34453.0,34447.0,1.26638099]
[1625353627931,1.02611854,34449.0,34447.0,0.24057544]
[1625353628033,1.08511854,34449.0,34447.0,0.24057544]
[1625353629435,0.24057544,34448.0,34447.0,0.24057544]
[1625353629534,0.29957544,34448.0,34447.0,0.24057544]
[1625353629984,0.24057544,34448.0,34447.0,0.24057544]
[1625353630285,0.29957544,34448.0,34447.0,0.24057544]
[1625353630486,0.29957544,34448.0,34447.0,1.26661582]
[1625353631135,0.29957544,34448.0,34447.0,0.24057544]
[1625353631937,0.24057544,34448.0,34447.0,0.24057544]
[1625353632148,1.02424686,34452.0,34447.0,1.3254615]
[1625353632236,1.02424686,34452.0,34447.0,1.6215415]
[1625353632593,1.02424686,34452.0,34448.0,0.29730335]
[1625353632837,0.24057544,34453.0,34451.0,1.02576757]
[1625353633038,0.24057544,34453.0,34451.0,1.08476757]
[1625353633139,0.24057544,34453.0,34451.0,1.14376757]
[1625353633392,0.24057544,34453.0,34452.0,0.48115088]
[1625353633488,0.24057544,34453.0,34452.0,4.13017315]
[1625353633587,0.24057544,34453.0,34452.0,4.18917315]
[1625353633988,0.24057544,34453.0,34452.0,5.72771047]
[1625353634889,0.24057544,34453.0,34452.0,5.66871047]
[1625353634991,0.24057544,34453.0,34452.0,5.60971047]
[1625353635091,0.29957544,34453.0,34452.0,5.60971047]
[1625353635742,0.35857544,34453.0,34452.0,1.50687153]
[1625353636089,0.35857544,34453.0,34452.0,0.48115088]
[1625353636338,0.29957544,34453.0,34452.0,0.48115088]
[1625353637692,0.29957544,34453.0,34452.0,0.54015088]
[1625353637693,0.24057544,34453.0,34452.0,0.54015088]
[1625353637793,0.24057544,34453.0,34452.0,0.48115088]
[1625353637897,0.24057544,34453.0,34452.0,1.56586381]
[1625353638298,0.24057544,34453.0,34452.0,2.76246518]
[1625353638797,0.24057544,34453.0,34452.0,4.12994985]
[1625353638950,0.24057544,34453.0,34452.0,4.07094985]
[1625353639045,0.53344544,34453.0,34452.0,4.07094985]
[1625353639296,0.53344544,34453.0,34452.0,2.70346518]
[1625353639748,0.59244544,34453.0,34452.0,2.70346518]
[1625353640199,0.65144544,34453.0,34452.0,1.50686381]
[1625353640410,0.65144544,34453.0,34452.0,1.26628837]
[1625353640807,2.86506907,34453.0,34452.0,0.24057544]
[1625353641354,4.22631615,34453.0,34452.0,0.24057544]
[1625353641453,4.46689159,34453.0,34447.0,0.24057544]
[1625353641757,1.0220534,34450.0,34447.0,0.24057544]
[1625353641855,1.0810534,34450.0,34447.0,0.24057544]
[1625353642007,1.1400534,34450.0,34447.0,0.24057544]
[1625353643510,0.24057544,34448.0,34447.0,0.24057544]
[1625353643607,0.29957544,34448.0,34447.0,0.24057544]
[1625353644609,0.29957544,34448.0,34447.0,1.26555881]
[1625353645711,0.29957544,34448.0,34447.0,0.24057544]
[1625353646413,0.24057544,34448.0,34447.0,0.24057544]
[1625353646611,1.50513433,34453.0,34447.0,0.30397992]
[1625353646761,1.56413433,34453.0,34447.0,0.50132992]
[1625353646861,1.56413433,34453.0,34448.0,0.00440422]